Workbook

Sheet CELE
B1: =TODAY() -> 2017-05-05 | C1: CELE | J1: Ćwiczenia | K1: Dieta
B2: DATA ROZPOCZĘCIA | C2: DZIENNIK DIETY I ĆWICZEŃ
B3: =Data_rozpoczęcia+121 -> 2017-09-03 | C3: ANALIZA DIETY
B5: DATA ZAKOŃCZENIA
B6: 100.00
B7: WAGA POCZĄTKOWA
B8: 80.00 | C8: ANALIZA ĆWICZEŃ
B10: WAGA DOCELOWA
B11: =Waga_początkowa-Waga_docelowa -> 20
B12: PLANOWANE SCHUDNIĘCIE
B13: =Data_zakończenia-Data_rozpoczęcia -> 121
B14: DNI ODCHUDZANIA
B15: =Planowanie_schudnięcie/B13 -> 0.17
B16: DZIENNA UTRATA

Sheet DIETA
B1: DIETA | G1: Cele | H1: Ćwiczenia
B2: =Podtytuł -> DZIENNIK DIETY I ĆWICZEŃ
B3: DATA | C3: GODZINA | D3: OPIS | E3: KALORIE | F3: WĘGLOWODANY | G3: BIAŁKO | H3: TŁUSZCZ | I3: NOTATKI
B4: =Data_rozpoczęcia -> 2017-05-05 | C4: 07:00:00 | D4: Kawa | E4: 1 | F4: 0 | G4: 0 | H4: 0 | I4: Poranna kawa
B5: =Data_rozpoczęcia -> 2017-05-05 | C5: 08:00:00 | D5: Drożdżówka | E5: 10 | F5: 10 | G5: 2 | H5: 10 | I5: Lekkie śniadanie
B6: =Data_rozpoczęcia -> 2017-05-05 | C6: 12:00:00 | D6: Obiad | E6: 283 | F6: 46 | G6: 18 | H6: 4 | I6: Kanapka z wędliną
B7: =Data_rozpoczęcia -> 2017-05-05 | C7: 19:00:00 | D7: Kolacja | E7: 500 | F7: 42 | G7: 35 | H7: 25 | I7: Zapiekanka mięsna
B8: =Data_rozpoczęcia+1 -> 2017-05-06 | C8: 07:00:00 | D8: Kawa | E8: 1 | F8: 0 | G8: 0 | H8: 0 | I8: Poranna kawa
B9: =Data_rozpoczęcia+1 -> 2017-05-06 | C9: 08:00:00 | D9: Grzanka | E9: 10 | F9: 10 | G9: 2 | H9: 10 | I9: Lekkie śniadanie
B10: =Data_rozpoczęcia+1 -> 2017-05-06 | C10: 12:00:00 | D10: Obiad | E10: 189 | F10: 26 | G10: 3 | H10: 8 | I10: Kanapka
B11: =Data_rozpoczęcia+1 -> 2017-05-06 | C11: 19:00:00 | D11: Kolacja | E11: 477 | F11: 62 | G11: 14 | H11: 21 | I11: Kolacja
B12: =Data_rozpoczęcia+2 -> 2017-05-07 | C12: 07:00:00 | D12: Kawa | E12: 1 | F12: 0 | G12: 0 | H12: 0 | I12: Poranna kawa
B13: =Data_rozpoczęcia+2 -> 2017-05-07 | C13: 08:00:00 | D13: Drożdżówka | E13: 245 | F13: 48 | G13: 10 | H13: 2 | I13: Lekkie śniadanie
B14: =Data_rozpoczęcia+2 -> 2017-05-07 | C14: 12:00:00 | D14: Obiad | E14: 247 | F14: 11 | G14: 43 | H14: 5 | I14: Sałatka
B15: =Data_rozpoczęcia+2 -> 2017-05-07 | C15: 19:00:00 | D15: Kolacja | E15: 456 | F15: 64 | G15: 32 | H15: 22 | I15: Kolacja
B16: =Data_rozpoczęcia+3 -> 2017-05-08 | C16: 07:00:00 | D16: Grzanka | E16: 10 | F16: 10 | G16: 2 | H16: 10 | I16: Lekkie śniadanie
B17: =Data_rozpoczęcia+3 -> 2017-05-08 | C17: 10:00:00 | D17: Kawa | E17: 135 | F17: 12 | G17: 9 | H17: 6 | I17: Kawa latte
B18: =Data_rozpoczęcia+3 -> 2017-05-08 | C18: 12:15:00 | D18: Obiad | E18: 184 | F18: 7 | G18: 5 | H18: 15 | I18: Sałatka
B19: =Data_rozpoczęcia+5 -> 2017-05-10 | C19: 19:00:00 | D19: Kolacja | E19: 477 | F19: 62 | G19: 14 | H19: 21 | I19: Kolacja

Sheet ĆWICZENIA
B1: ĆWICZENIA | F1: Dieta | G1: Cele
B2: =Podtytuł -> DZIENNIK DIETY I ĆWICZEŃ
B3: DATA | C3: CZAS TRWANIA (W MINUTACH) | D3: SPALONE KALORIE | E3: NOTATKI
B4: =Data_rozpoczęcia+4 -> 2017-05-09 | C4: 30 | D4: 120 | E4: Bieżnia
B5: =B4+1 -> 2017-05-10 | C5: 60 | D5: 180 | E5: Lekki aerobik
B6: =B5+1 -> 2017-05-11 | C6: 60 | D6: 350 | E6: Trening ekstremalny
B7: 2017-05-12 | C7: 30 | D7: 150 | E7: Bieżnia
B8: 2017-05-13 | C8: 25 | D8: 125 | E8: Bieg
B9: 2017-05-14 | C9: 20 | D9: 285 | E9: Bieżnia
B10: 2017-05-15 | C10: 40 | D10: 205 | E10: Bieg
B11: 2017-05-16 | C11: 30 | D11: 335 | E11: Bieg
B12: 2017-05-17 | C12: 40 | D12: 175 | E12: Bieg
B13: 2017-05-18 | C13: 45 | D13: 325 | E13: Bieżnia
B14: 2017-05-19 | C14: 40 | D14: 270 | E14: Bieg
B15: 2017-05-20 | C15: 20 | D15: 295 | E15: Bieżnia
B16: 2017-05-21 | C16: 45 | D16: 350 | E16: Bieg
B17: 2017-05-22 | C17: 35 | D17: 320 | E17: Bieg
B18: 2017-05-23 | C18: 40 | D18: 290 | E18: Bieg
B19: =B18+1 -> 2017-05-24 | C19: 25 | D19: 265 | E19: Bieżnia
B20: 2017-05-25 | C20: 20 | D20: 195 | E20: Bieg

Sheet Obliczenia wykresu (hidden)
B2: DANE WYKRESU ANALIZY DIETY
B4: Wiersz początkowy | C4: =ROW(Dieta[[#Headers],[DATA]])+1 -> 4 | D4: DATA | E4: DZIEŃ | F4: TŁUSZCZ | G4: BIAŁKO | H4: WĘGLOWODANY | I4: KALORIE | J4: Liczba
B5: Ostatni wpis diety | C5: =MATCH(9.99E+307,Dieta[DATA])+Dieta_wiersz_początkowy-1 -> 19 | D5: =IFERROR(IF(INDEX(Dieta[],Dieta_ostatni_koniec-Dieta_wiersz_początkowy-J5,1)<>"",INDEX(Dieta[],Dieta_ostatni_koniec-Dieta_wiersz_początkowy-J5,1),""),"") -> 2017-05-05 | E5: =UPPER(TEXT(D5,"AAA")) -> PT | F5: =IFERROR((IF(INDEX(Dieta[],Dieta_ostatni_koniec-Dieta_wiersz_początkowy-J5,1)<>"",INDEX(Dieta[],Dieta_ostatni_koniec-Dieta_wiersz_początkowy-J5,7),NA())),NA()) -> 3.5 | G5: =IFERROR((IF(INDEX(Dieta[],Dieta_ostatni_koniec-Dieta_wiersz_początkowy-J5,1)<>"",INDEX(Dieta[],Dieta_ostatni_koniec-Dieta_wiersz_początkowy-J5,6),NA())),NA()) -> 18 | H5: =IFERROR((IF(INDEX(Dieta[],Dieta_ostatni_koniec-Dieta_wiersz_początkowy-J5,1)<>"",INDEX(Dieta[],Dieta_ostatni_koniec-Dieta_wiersz_początkowy-J5,5),NA())),NA()) -> 46 | I5: =IFERROR((IF(INDEX(Dieta[],Dieta_ostatni_koniec-Dieta_wiersz_początkowy-J5,1)<>"",INDEX(Dieta[],Dieta_ostatni_koniec-Dieta_wiersz_początkowy-J5,4),NA())),NA()) -> 283 | J5: 12
D6: =IFERROR(IF(INDEX(Dieta[],Dieta_ostatni_koniec-Dieta_wiersz_początkowy-J6,1)<>"",INDEX(Dieta[],Dieta_ostatni_koniec-Dieta_wiersz_początkowy-J6,1),""),"") -> 2017-05-05 | E6: PT | F6: =IFERROR((IF(INDEX(Dieta[],Dieta_ostatni_koniec-Dieta_wiersz_początkowy-J6,1)<>"",INDEX(Dieta[],Dieta_ostatni_koniec-Dieta_wiersz_początkowy-J6,7),NA())),NA()) -> 25 | G6: =IFERROR((IF(INDEX(Dieta[],Dieta_ostatni_koniec-Dieta_wiersz_początkowy-J6,1)<>"",INDEX(Dieta[],Dieta_ostatni_koniec-Dieta_wiersz_początkowy-J6,6),NA())),NA()) -> 35 | H6: =IFERROR((IF(INDEX(Dieta[],Dieta_ostatni_koniec-Dieta_wiersz_początkowy-J6,1)<>"",INDEX(Dieta[],Dieta_ostatni_koniec-Dieta_wiersz_początkowy-J6,5),NA())),NA()) -> 42 | I6: =IFERROR((IF(INDEX(Dieta[],Dieta_ostatni_koniec-Dieta_wiersz_początkowy-J6,1)<>"",INDEX(Dieta[],Dieta_ostatni_koniec-Dieta_wiersz_początkowy-J6,4),NA())),NA()) -> 500 | J6: 11
D7: =IFERROR(IF(INDEX(Dieta[],Dieta_ostatni_koniec-Dieta_wiersz_początkowy-J7,1)<>"",INDEX(Dieta[],Dieta_ostatni_koniec-Dieta_wiersz_początkowy-J7,1),""),"") -> 2017-05-06 | E7: SOB | F7: =IFERROR((IF(INDEX(Dieta[],Dieta_ostatni_koniec-Dieta_wiersz_początkowy-J7,1)<>"",INDEX(Dieta[],Dieta_ostatni_koniec-Dieta_wiersz_początkowy-J7,7),NA())),NA()) -> 0 | G7: =IFERROR((IF(INDEX(Dieta[],Dieta_ostatni_koniec-Dieta_wiersz_początkowy-J7,1)<>"",INDEX(Dieta[],Dieta_ostatni_koniec-Dieta_wiersz_początkowy-J7,6),NA())),NA()) -> 0 | H7: =IFERROR((IF(INDEX(Dieta[],Dieta_ostatni_koniec-Dieta_wiersz_początkowy-J7,1)<>"",INDEX(Dieta[],Dieta_ostatni_koniec-Dieta_wiersz_początkowy-J7,5),NA())),NA()) -> 0 | I7: =IFERROR((IF(INDEX(Dieta[],Dieta_ostatni_koniec-Dieta_wiersz_początkowy-J7,1)<>"",INDEX(Dieta[],Dieta_ostatni_koniec-Dieta_wiersz_początkowy-J7,4),NA())),NA()) -> 1 | J7: 10
D8: =IFERROR(IF(INDEX(Dieta[],Dieta_ostatni_koniec-Dieta_wiersz_początkowy-J8,1)<>"",INDEX(Dieta[],Dieta_ostatni_koniec-Dieta_wiersz_początkowy-J8,1),""),"") -> 2017-05-06 | E8: SOB | F8: =IFERROR((IF(INDEX(Dieta[],Dieta_ostatni_koniec-Dieta_wiersz_początkowy-J8,1)<>"",INDEX(Dieta[],Dieta_ostatni_koniec-Dieta_wiersz_początkowy-J8,7),NA())),NA()) -> 10 | G8: =IFERROR((IF(INDEX(Dieta[],Dieta_ostatni_koniec-Dieta_wiersz_początkowy-J8,1)<>"",INDEX(Dieta[],Dieta_ostatni_koniec-Dieta_wiersz_początkowy-J8,6),NA())),NA()) -> 2 | H8: =IFERROR((IF(INDEX(Dieta[],Dieta_ostatni_koniec-Dieta_wiersz_początkowy-J8,1)<>"",INDEX(Dieta[],Dieta_ostatni_koniec-Dieta_wiersz_początkowy-J8,5),NA())),NA()) -> 10 | I8: =IFERROR((IF(INDEX(Dieta[],Dieta_ostatni_koniec-Dieta_wiersz_początkowy-J8,1)<>"",INDEX(Dieta[],Dieta_ostatni_koniec-Dieta_wiersz_początkowy-J8,4),NA())),NA()) -> 10 | J8: 9
D9: =IFERROR(IF(INDEX(Dieta[],Dieta_ostatni_koniec-Dieta_wiersz_początkowy-J9,1)<>"",INDEX(Dieta[],Dieta_ostatni_koniec-Dieta_wiersz_początkowy-J9,1),""),"") -> 2017-05-06 | E9: SOB | F9: =IFERROR((IF(INDEX(Dieta[],Dieta_ostatni_koniec-Dieta_wiersz_początkowy-J9,1)<>"",INDEX(Dieta[],Dieta_ostatni_koniec-Dieta_wiersz_początkowy-J9,7),NA())),NA()) -> 8 | G9: =IFERROR((IF(INDEX(Dieta[],Dieta_ostatni_koniec-Dieta_wiersz_początkowy-J9,1)<>"",INDEX(Dieta[],Dieta_ostatni_koniec-Dieta_wiersz_początkowy-J9,6),NA())),NA()) -> 3 | H9: =IFERROR((IF(INDEX(Dieta[],Dieta_ostatni_koniec-Dieta_wiersz_początkowy-J9,1)<>"",INDEX(Dieta[],Dieta_ostatni_koniec-Dieta_wiersz_początkowy-J9,5),NA())),NA()) -> 26 | I9: =IFERROR((IF(INDEX(Dieta[],Dieta_ostatni_koniec-Dieta_wiersz_początkowy-J9,1)<>"",INDEX(Dieta[],Dieta_ostatni_koniec-Dieta_wiersz_początkowy-J9,4),NA())),NA()) -> 189 | J9: 8
D10: =IFERROR(IF(INDEX(Dieta[],Dieta_ostatni_koniec-Dieta_wiersz_początkowy-J10,1)<>"",INDEX(Dieta[],Dieta_ostatni_koniec-Dieta_wiersz_początkowy-J10,1),""),"") -> 2017-05-06 | E10: SOB | F10: =IFERROR((IF(INDEX(Dieta[],Dieta_ostatni_koniec-Dieta_wiersz_początkowy-J10,1)<>"",INDEX(Dieta[],Dieta_ostatni_koniec-Dieta_wiersz_początkowy-J10,7),NA())),NA()) -> 21 | G10: =IFERROR((IF(INDEX(Dieta[],Dieta_ostatni_koniec-Dieta_wiersz_początkowy-J10,1)<>"",INDEX(Dieta[],Dieta_ostatni_koniec-Dieta_wiersz_początkowy-J10,6),NA())),NA()) -> 13.5 | H10: =IFERROR((IF(INDEX(Dieta[],Dieta_ostatni_koniec-Dieta_wiersz_początkowy-J10,1)<>"",INDEX(Dieta[],Dieta_ostatni_koniec-Dieta_wiersz_początkowy-J10,5),NA())),NA()) -> 62 | I10: =IFERROR((IF(INDEX(Dieta[],Dieta_ostatni_koniec-Dieta_wiersz_początkowy-J10,1)<>"",INDEX(Dieta[],Dieta_ostatni_koniec-Dieta_wiersz_początkowy-J10,4),NA())),NA()) -> 477 | J10: 7
D11: =IFERROR(IF(INDEX(Dieta[],Dieta_ostatni_koniec-Dieta_wiersz_początkowy-J11,1)<>"",INDEX(Dieta[],Dieta_ostatni_koniec-Dieta_wiersz_początkowy-J11,1),""),"") -> 2017-05-07 | E11: NIEDZ | F11: =IFERROR((IF(INDEX(Dieta[],Dieta_ostatni_koniec-Dieta_wiersz_początkowy-J11,1)<>"",INDEX(Dieta[],Dieta_ostatni_koniec-Dieta_wiersz_początkowy-J11,7),NA())),NA()) -> 0 | G11: =IFERROR((IF(INDEX(Dieta[],Dieta_ostatni_koniec-Dieta_wiersz_początkowy-J11,1)<>"",INDEX(Dieta[],Dieta_ostatni_koniec-Dieta_wiersz_początkowy-J11,6),NA())),NA()) -> 0 | H11: =IFERROR((IF(INDEX(Dieta[],Dieta_ostatni_koniec-Dieta_wiersz_początkowy-J11,1)<>"",INDEX(Dieta[],Dieta_ostatni_koniec-Dieta_wiersz_początkowy-J11,5),NA())),NA()) -> 0 | I11: =IFERROR((IF(INDEX(Dieta[],Dieta_ostatni_koniec-Dieta_wiersz_początkowy-J11,1)<>"",INDEX(Dieta[],Dieta_ostatni_koniec-Dieta_wiersz_początkowy-J11,4),NA())),NA()) -> 1 | J11: 6
D12: =IFERROR(IF(INDEX(Dieta[],Dieta_ostatni_koniec-Dieta_wiersz_początkowy-J12,1)<>"",INDEX(Dieta[],Dieta_ostatni_koniec-Dieta_wiersz_początkowy-J12,1),""),"") -> 2017-05-07 | E12: NIEDZ | F12: =IFERROR((IF(INDEX(Dieta[],Dieta_ostatni_koniec-Dieta_wiersz_początkowy-J12,1)<>"",INDEX(Dieta[],Dieta_ostatni_koniec-Dieta_wiersz_początkowy-J12,7),NA())),NA()) -> 1.5 | G12: =IFERROR((IF(INDEX(Dieta[],Dieta_ostatni_koniec-Dieta_wiersz_początkowy-J12,1)<>"",INDEX(Dieta[],Dieta_ostatni_koniec-Dieta_wiersz_początkowy-J12,6),NA())),NA()) -> 10 | H12: =IFERROR((IF(INDEX(Dieta[],Dieta_ostatni_koniec-Dieta_wiersz_początkowy-J12,1)<>"",INDEX(Dieta[],Dieta_ostatni_koniec-Dieta_wiersz_początkowy-J12,5),NA())),NA()) -> 48 | I12: =IFERROR((IF(INDEX(Dieta[],Dieta_ostatni_koniec-Dieta_wiersz_początkowy-J12,1)<>"",INDEX(Dieta[],Dieta_ostatni_koniec-Dieta_wiersz_początkowy-J12,4),NA())),NA()) -> 245 | J12: 5
D13: =IFERROR(IF(INDEX(Dieta[],Dieta_ostatni_koniec-Dieta_wiersz_początkowy-J13,1)<>"",INDEX(Dieta[],Dieta_ostatni_koniec-Dieta_wiersz_początkowy-J13,1),""),"") -> 2017-05-07 | E13: NIEDZ | F13: =IFERROR((IF(INDEX(Dieta[],Dieta_ostatni_koniec-Dieta_wiersz_początkowy-J13,1)<>"",INDEX(Dieta[],Dieta_ostatni_koniec-Dieta_wiersz_początkowy-J13,7),NA())),NA()) -> 5 | G13: =IFERROR((IF(INDEX(Dieta[],Dieta_ostatni_koniec-Dieta_wiersz_początkowy-J13,1)<>"",INDEX(Dieta[],Dieta_ostatni_koniec-Dieta_wiersz_początkowy-J13,6),NA())),NA()) -> 43 | H13: =IFERROR((IF(INDEX(Dieta[],Dieta_ostatni_koniec-Dieta_wiersz_początkowy-J13,1)<>"",INDEX(Dieta[],Dieta_ostatni_koniec-Dieta_wiersz_początkowy-J13,5),NA())),NA()) -> 11 | I13: =IFERROR((IF(INDEX(Dieta[],Dieta_ostatni_koniec-Dieta_wiersz_początkowy-J13,1)<>"",INDEX(Dieta[],Dieta_ostatni_koniec-Dieta_wiersz_początkowy-J13,4),NA())),NA()) -> 247 | J13: 4
D14: =IFERROR(IF(INDEX(Dieta[],Dieta_ostatni_koniec-Dieta_wiersz_początkowy-J14,1)<>"",INDEX(Dieta[],Dieta_ostatni_koniec-Dieta_wiersz_początkowy-J14,1),""),"") -> 2017-05-07 | E14: NIEDZ | F14: =IFERROR((IF(INDEX(Dieta[],Dieta_ostatni_koniec-Dieta_wiersz_początkowy-J14,1)<>"",INDEX(Dieta[],Dieta_ostatni_koniec-Dieta_wiersz_początkowy-J14,7),NA())),NA()) -> 22 | G14: =IFERROR((IF(INDEX(Dieta[],Dieta_ostatni_koniec-Dieta_wiersz_początkowy-J14,1)<>"",INDEX(Dieta[],Dieta_ostatni_koniec-Dieta_wiersz_początkowy-J14,6),NA())),NA()) -> 32 | H14: =IFERROR((IF(INDEX(Dieta[],Dieta_ostatni_koniec-Dieta_wiersz_początkowy-J14,1)<>"",INDEX(Dieta[],Dieta_ostatni_koniec-Dieta_wiersz_początkowy-J14,5),NA())),NA()) -> 64 | I14: =IFERROR((IF(INDEX(Dieta[],Dieta_ostatni_koniec-Dieta_wiersz_początkowy-J14,1)<>"",INDEX(Dieta[],Dieta_ostatni_koniec-Dieta_wiersz_początkowy-J14,4),NA())),NA()) -> 456 | J14: 3
D15: =IFERROR(IF(INDEX(Dieta[],Dieta_ostatni_koniec-Dieta_wiersz_początkowy-J15,1)<>"",INDEX(Dieta[],Dieta_ostatni_koniec-Dieta_wiersz_początkowy-J15,1),""),"") -> 2017-05-08 | E15: PON | F15: =IFERROR((IF(INDEX(Dieta[],Dieta_ostatni_koniec-Dieta_wiersz_początkowy-J15,1)<>"",INDEX(Dieta[],Dieta_ostatni_koniec-Dieta_wiersz_początkowy-J15,7),NA())),NA()) -> 10 | G15: =IFERROR((IF(INDEX(Dieta[],Dieta_ostatni_koniec-Dieta_wiersz_początkowy-J15,1)<>"",INDEX(Dieta[],Dieta_ostatni_koniec-Dieta_wiersz_początkowy-J15,6),NA())),NA()) -> 2 | H15: =IFERROR((IF(INDEX(Dieta[],Dieta_ostatni_koniec-Dieta_wiersz_początkowy-J15,1)<>"",INDEX(Dieta[],Dieta_ostatni_koniec-Dieta_wiersz_początkowy-J15,5),NA())),NA()) -> 10 | I15: =IFERROR((IF(INDEX(Dieta[],Dieta_ostatni_koniec-Dieta_wiersz_początkowy-J15,1)<>"",INDEX(Dieta[],Dieta_ostatni_koniec-Dieta_wiersz_początkowy-J15,4),NA())),NA()) -> 10 | J15: 2
D16: =IFERROR(IF(INDEX(Dieta[],Dieta_ostatni_koniec-Dieta_wiersz_początkowy-J16,1)<>"",INDEX(Dieta[],Dieta_ostatni_koniec-Dieta_wiersz_początkowy-J16,1),""),"") -> 2017-05-08 | E16: PON | F16: =IFERROR((IF(INDEX(Dieta[],Dieta_ostatni_koniec-Dieta_wiersz_początkowy-J16,1)<>"",INDEX(Dieta[],Dieta_ostatni_koniec-Dieta_wiersz_początkowy-J16,7),NA())),NA()) -> 5.51 | G16: =IFERROR((IF(INDEX(Dieta[],Dieta_ostatni_koniec-Dieta_wiersz_początkowy-J16,1)<>"",INDEX(Dieta[],Dieta_ostatni_koniec-Dieta_wiersz_początkowy-J16,6),NA())),NA()) -> 8.81 | H16: =IFERROR((IF(INDEX(Dieta[],Dieta_ostatni_koniec-Dieta_wiersz_początkowy-J16,1)<>"",INDEX(Dieta[],Dieta_ostatni_koniec-Dieta_wiersz_początkowy-J16,5),NA())),NA()) -> 12.36 | I16: =IFERROR((IF(INDEX(Dieta[],Dieta_ostatni_koniec-Dieta_wiersz_początkowy-J16,1)<>"",INDEX(Dieta[],Dieta_ostatni_koniec-Dieta_wiersz_początkowy-J16,4),NA())),NA()) -> 135 | J16: 1
D17: =IFERROR(IF(INDEX(Dieta[],Dieta_ostatni_koniec-Dieta_wiersz_początkowy-J17,1)<>"",INDEX(Dieta[],Dieta_ostatni_koniec-Dieta_wiersz_początkowy-J17,1),""),"") -> 2017-05-08 | E17: PON | F17: =IFERROR((IF(INDEX(Dieta[],Dieta_ostatni_koniec-Dieta_wiersz_początkowy-J17,1)<>"",INDEX(Dieta[],Dieta_ostatni_koniec-Dieta_wiersz_początkowy-J17,7),NA())),NA()) -> 15 | G17: =IFERROR((IF(INDEX(Dieta[],Dieta_ostatni_koniec-Dieta_wiersz_początkowy-J17,1)<>"",INDEX(Dieta[],Dieta_ostatni_koniec-Dieta_wiersz_początkowy-J17,6),NA())),NA()) -> 5.43 | H17: =IFERROR((IF(INDEX(Dieta[],Dieta_ostatni_koniec-Dieta_wiersz_początkowy-J17,1)<>"",INDEX(Dieta[],Dieta_ostatni_koniec-Dieta_wiersz_początkowy-J17,5),NA())),NA()) -> 7 | I17: =IFERROR((IF(INDEX(Dieta[],Dieta_ostatni_koniec-Dieta_wiersz_początkowy-J17,1)<>"",INDEX(Dieta[],Dieta_ostatni_koniec-Dieta_wiersz_początkowy-J17,4),NA())),NA()) -> 184 | J17: 0
D18: =IFERROR(IF(INDEX(Dieta[],Dieta_ostatni_koniec-Dieta_wiersz_początkowy-J18,1)<>"",INDEX(Dieta[],Dieta_ostatni_koniec-Dieta_wiersz_początkowy-J18,1),""),"") -> 2017-05-10 | E18: ŚR | F18: =IFERROR((IF(INDEX(Dieta[],Dieta_ostatni_koniec-Dieta_wiersz_początkowy-J18,1)<>"",INDEX(Dieta[],Dieta_ostatni_koniec-Dieta_wiersz_początkowy-J18,7),NA())),NA()) -> 21 | G18: =IFERROR((IF(INDEX(Dieta[],Dieta_ostatni_koniec-Dieta_wiersz_początkowy-J18,1)<>"",INDEX(Dieta[],Dieta_ostatni_koniec-Dieta_wiersz_początkowy-J18,6),NA())),NA()) -> 13.5 | H18: =IFERROR((IF(INDEX(Dieta[],Dieta_ostatni_koniec-Dieta_wiersz_początkowy-J18,1)<>"",INDEX(Dieta[],Dieta_ostatni_koniec-Dieta_wiersz_początkowy-J18,5),NA())),NA()) -> 62 | I18: =IFERROR((IF(INDEX(Dieta[],Dieta_ostatni_koniec-Dieta_wiersz_początkowy-J18,1)<>"",INDEX(Dieta[],Dieta_ostatni_koniec-Dieta_wiersz_początkowy-J18,4),NA())),NA()) -> 477 | J18: -1
B20: DANE WYKRESU ANALIZY ĆWICZEŃ
B22: Wiersz początkowy | C22: =ROW(Ćwiczenia[[#Headers],[DATA]])+1 -> 4 | D22: DATA | E22: DZIEŃ | F22: CZAS TRWANIA (W MINUTACH) | G22: SPALONE KALORIE | H22: Liczba
B23: Ostatni wpis ćwiczeń | C23: =MATCH(9.99E+307,Ćwiczenia[DATA])+Ćwiczenia_wiersz_początkowy-1 -> 20 | D23: =IFERROR(IF(INDEX(Ćwiczenia[],Ćwiczenia_ostatni_koniec-Ćwiczenia_wiersz_początkowy-H23,1)<>"",INDEX(Ćwiczenia[],Ćwiczenia_ostatni_koniec-Ćwiczenia_wiersz_początkowy-H23,1)),"") -> 2017-05-25 | E23: =UPPER(TEXT(D23,"AAA")) -> CZW | F23: =IFERROR((IF(INDEX(Ćwiczenia[],Ćwiczenia_ostatni_koniec-Ćwiczenia_wiersz_początkowy-H23,1)<>"",INDEX(Ćwiczenia[],Ćwiczenia_ostatni_koniec-Ćwiczenia_wiersz_początkowy-H23,2),0)),0) -> 20 | G23: =IFERROR((IF(INDEX(Ćwiczenia[],Ćwiczenia_ostatni_koniec-Ćwiczenia_wiersz_początkowy-H23,2)<>"",INDEX(Ćwiczenia[],Ćwiczenia_ostatni_koniec-Ćwiczenia_wiersz_początkowy-H23,3),0)),0) -> 195 | H23: -1
D24: =IFERROR(IF(INDEX(Ćwiczenia[],Ćwiczenia_ostatni_koniec-Ćwiczenia_wiersz_początkowy-H24,1)<>"",INDEX(Ćwiczenia[],Ćwiczenia_ostatni_koniec-Ćwiczenia_wiersz_początkowy-H24,1)),"") -> 2017-05-24 | E24: ŚR | F24: =IFERROR((IF(INDEX(Ćwiczenia[],Ćwiczenia_ostatni_koniec-Ćwiczenia_wiersz_początkowy-H24,1)<>"",INDEX(Ćwiczenia[],Ćwiczenia_ostatni_koniec-Ćwiczenia_wiersz_początkowy-H24,2),0)),0) -> 25 | G24: =IFERROR((IF(INDEX(Ćwiczenia[],Ćwiczenia_ostatni_koniec-Ćwiczenia_wiersz_początkowy-H24,2)<>"",INDEX(Ćwiczenia[],Ćwiczenia_ostatni_koniec-Ćwiczenia_wiersz_początkowy-H24,3),0)),0) -> 265 | H24: 0
D25: =IFERROR(IF(INDEX(Ćwiczenia[],Ćwiczenia_ostatni_koniec-Ćwiczenia_wiersz_początkowy-H25,1)<>"",INDEX(Ćwiczenia[],Ćwiczenia_ostatni_koniec-Ćwiczenia_wiersz_początkowy-H25,1)),"") -> 2017-05-23 | E25: WT | F25: =IFERROR((IF(INDEX(Ćwiczenia[],Ćwiczenia_ostatni_koniec-Ćwiczenia_wiersz_początkowy-H25,1)<>"",INDEX(Ćwiczenia[],Ćwiczenia_ostatni_koniec-Ćwiczenia_wiersz_początkowy-H25,2),0)),0) -> 40 | G25: =IFERROR((IF(INDEX(Ćwiczenia[],Ćwiczenia_ostatni_koniec-Ćwiczenia_wiersz_początkowy-H25,2)<>"",INDEX(Ćwiczenia[],Ćwiczenia_ostatni_koniec-Ćwiczenia_wiersz_początkowy-H25,3),0)),0) -> 290 | H25: 1
D26: =IFERROR(IF(INDEX(Ćwiczenia[],Ćwiczenia_ostatni_koniec-Ćwiczenia_wiersz_początkowy-H26,1)<>"",INDEX(Ćwiczenia[],Ćwiczenia_ostatni_koniec-Ćwiczenia_wiersz_początkowy-H26,1)),"") -> 2017-05-22 | E26: PON | F26: =IFERROR((IF(INDEX(Ćwiczenia[],Ćwiczenia_ostatni_koniec-Ćwiczenia_wiersz_początkowy-H26,1)<>"",INDEX(Ćwiczenia[],Ćwiczenia_ostatni_koniec-Ćwiczenia_wiersz_początkowy-H26,2),0)),0) -> 35 | G26: =IFERROR((IF(INDEX(Ćwiczenia[],Ćwiczenia_ostatni_koniec-Ćwiczenia_wiersz_początkowy-H26,2)<>"",INDEX(Ćwiczenia[],Ćwiczenia_ostatni_koniec-Ćwiczenia_wiersz_początkowy-H26,3),0)),0) -> 320 | H26: 2
D27: =IFERROR(IF(INDEX(Ćwiczenia[],Ćwiczenia_ostatni_koniec-Ćwiczenia_wiersz_początkowy-H27,1)<>"",INDEX(Ćwiczenia[],Ćwiczenia_ostatni_koniec-Ćwiczenia_wiersz_początkowy-H27,1)),"") -> 2017-05-21 | E27: NIEDZ | F27: =IFERROR((IF(INDEX(Ćwiczenia[],Ćwiczenia_ostatni_koniec-Ćwiczenia_wiersz_początkowy-H27,1)<>"",INDEX(Ćwiczenia[],Ćwiczenia_ostatni_koniec-Ćwiczenia_wiersz_początkowy-H27,2),0)),0) -> 45 | G27: =IFERROR((IF(INDEX(Ćwiczenia[],Ćwiczenia_ostatni_koniec-Ćwiczenia_wiersz_początkowy-H27,2)<>"",INDEX(Ćwiczenia[],Ćwiczenia_ostatni_koniec-Ćwiczenia_wiersz_początkowy-H27,3),0)),0) -> 350 | H27: 3
D28: =IFERROR(IF(INDEX(Ćwiczenia[],Ćwiczenia_ostatni_koniec-Ćwiczenia_wiersz_początkowy-H28,1)<>"",INDEX(Ćwiczenia[],Ćwiczenia_ostatni_koniec-Ćwiczenia_wiersz_początkowy-H28,1)),"") -> 2017-05-20 | E28: SOB | F28: =IFERROR((IF(INDEX(Ćwiczenia[],Ćwiczenia_ostatni_koniec-Ćwiczenia_wiersz_początkowy-H28,1)<>"",INDEX(Ćwiczenia[],Ćwiczenia_ostatni_koniec-Ćwiczenia_wiersz_początkowy-H28,2),0)),0) -> 20 | G28: =IFERROR((IF(INDEX(Ćwiczenia[],Ćwiczenia_ostatni_koniec-Ćwiczenia_wiersz_początkowy-H28,2)<>"",INDEX(Ćwiczenia[],Ćwiczenia_ostatni_koniec-Ćwiczenia_wiersz_początkowy-H28,3),0)),0) -> 295 | H28: 4
D29: =IFERROR(IF(INDEX(Ćwiczenia[],Ćwiczenia_ostatni_koniec-Ćwiczenia_wiersz_początkowy-H29,1)<>"",INDEX(Ćwiczenia[],Ćwiczenia_ostatni_koniec-Ćwiczenia_wiersz_początkowy-H29,1)),"") -> 2017-05-19 | E29: PT | F29: =IFERROR((IF(INDEX(Ćwiczenia[],Ćwiczenia_ostatni_koniec-Ćwiczenia_wiersz_początkowy-H29,1)<>"",INDEX(Ćwiczenia[],Ćwiczenia_ostatni_koniec-Ćwiczenia_wiersz_początkowy-H29,2),0)),0) -> 40 | G29: =IFERROR((IF(INDEX(Ćwiczenia[],Ćwiczenia_ostatni_koniec-Ćwiczenia_wiersz_początkowy-H29,2)<>"",INDEX(Ćwiczenia[],Ćwiczenia_ostatni_koniec-Ćwiczenia_wiersz_początkowy-H29,3),0)),0) -> 270 | H29: 5
D30: =IFERROR(IF(INDEX(Ćwiczenia[],Ćwiczenia_ostatni_koniec-Ćwiczenia_wiersz_początkowy-H30,1)<>"",INDEX(Ćwiczenia[],Ćwiczenia_ostatni_koniec-Ćwiczenia_wiersz_początkowy-H30,1)),"") -> 2017-05-18 | E30: CZW | F30: =IFERROR((IF(INDEX(Ćwiczenia[],Ćwiczenia_ostatni_koniec-Ćwiczenia_wiersz_początkowy-H30,1)<>"",INDEX(Ćwiczenia[],Ćwiczenia_ostatni_koniec-Ćwiczenia_wiersz_początkowy-H30,2),0)),0) -> 45 | G30: =IFERROR((IF(INDEX(Ćwiczenia[],Ćwiczenia_ostatni_koniec-Ćwiczenia_wiersz_początkowy-H30,2)<>"",INDEX(Ćwiczenia[],Ćwiczenia_ostatni_koniec-Ćwiczenia_wiersz_początkowy-H30,3),0)),0) -> 325 | H30: 6
D31: =IFERROR(IF(INDEX(Ćwiczenia[],Ćwiczenia_ostatni_koniec-Ćwiczenia_wiersz_początkowy-H31,1)<>"",INDEX(Ćwiczenia[],Ćwiczenia_ostatni_koniec-Ćwiczenia_wiersz_początkowy-H31,1)),"") -> 2017-05-17 | E31: ŚR | F31: =IFERROR((IF(INDEX(Ćwiczenia[],Ćwiczenia_ostatni_koniec-Ćwiczenia_wiersz_początkowy-H31,1)<>"",INDEX(Ćwiczenia[],Ćwiczenia_ostatni_koniec-Ćwiczenia_wiersz_początkowy-H31,2),0)),0) -> 40 | G31: =IFERROR((IF(INDEX(Ćwiczenia[],Ćwiczenia_ostatni_koniec-Ćwiczenia_wiersz_początkowy-H31,2)<>"",INDEX(Ćwiczenia[],Ćwiczenia_ostatni_koniec-Ćwiczenia_wiersz_początkowy-H31,3),0)),0) -> 175 | H31: 7
D32: =IFERROR(IF(INDEX(Ćwiczenia[],Ćwiczenia_ostatni_koniec-Ćwiczenia_wiersz_początkowy-H32,1)<>"",INDEX(Ćwiczenia[],Ćwiczenia_ostatni_koniec-Ćwiczenia_wiersz_początkowy-H32,1)),"") -> 2017-05-16 | E32: WT | F32: =IFERROR((IF(INDEX(Ćwiczenia[],Ćwiczenia_ostatni_koniec-Ćwiczenia_wiersz_początkowy-H32,1)<>"",INDEX(Ćwiczenia[],Ćwiczenia_ostatni_koniec-Ćwiczenia_wiersz_początkowy-H32,2),0)),0) -> 30 | G32: =IFERROR((IF(INDEX(Ćwiczenia[],Ćwiczenia_ostatni_koniec-Ćwiczenia_wiersz_początkowy-H32,2)<>"",INDEX(Ćwiczenia[],Ćwiczenia_ostatni_koniec-Ćwiczenia_wiersz_początkowy-H32,3),0)),0) -> 335 | H32: 8
D33: =IFERROR(IF(INDEX(Ćwiczenia[],Ćwiczenia_ostatni_koniec-Ćwiczenia_wiersz_początkowy-H33,1)<>"",INDEX(Ćwiczenia[],Ćwiczenia_ostatni_koniec-Ćwiczenia_wiersz_początkowy-H33,1)),"") -> 2017-05-15 | E33: PON | F33: =IFERROR((IF(INDEX(Ćwiczenia[],Ćwiczenia_ostatni_koniec-Ćwiczenia_wiersz_początkowy-H33,1)<>"",INDEX(Ćwiczenia[],Ćwiczenia_ostatni_koniec-Ćwiczenia_wiersz_początkowy-H33,2),0)),0) -> 40 | G33: =IFERROR((IF(INDEX(Ćwiczenia[],Ćwiczenia_ostatni_koniec-Ćwiczenia_wiersz_początkowy-H33,2)<>"",INDEX(Ćwiczenia[],Ćwiczenia_ostatni_koniec-Ćwiczenia_wiersz_początkowy-H33,3),0)),0) -> 205 | H33: 9
D34: =IFERROR(IF(INDEX(Ćwiczenia[],Ćwiczenia_ostatni_koniec-Ćwiczenia_wiersz_początkowy-H34,1)<>"",INDEX(Ćwiczenia[],Ćwiczenia_ostatni_koniec-Ćwiczenia_wiersz_początkowy-H34,1)),"") -> 2017-05-14 | E34: NIEDZ | F34: =IFERROR((IF(INDEX(Ćwiczenia[],Ćwiczenia_ostatni_koniec-Ćwiczenia_wiersz_początkowy-H34,1)<>"",INDEX(Ćwiczenia[],Ćwiczenia_ostatni_koniec-Ćwiczenia_wiersz_początkowy-H34,2),0)),0) -> 20 | G34: =IFERROR((IF(INDEX(Ćwiczenia[],Ćwiczenia_ostatni_koniec-Ćwiczenia_wiersz_początkowy-H34,2)<>"",INDEX(Ćwiczenia[],Ćwiczenia_ostatni_koniec-Ćwiczenia_wiersz_początkowy-H34,3),0)),0) -> 285 | H34: 10
D35: =IFERROR(IF(INDEX(Ćwiczenia[],Ćwiczenia_ostatni_koniec-Ćwiczenia_wiersz_początkowy-H35,1)<>"",INDEX(Ćwiczenia[],Ćwiczenia_ostatni_koniec-Ćwiczenia_wiersz_początkowy-H35,1)),"") -> 2017-05-13 | E35: SOB | F35: =IFERROR((IF(INDEX(Ćwiczenia[],Ćwiczenia_ostatni_koniec-Ćwiczenia_wiersz_początkowy-H35,1)<>"",INDEX(Ćwiczenia[],Ćwiczenia_ostatni_koniec-Ćwiczenia_wiersz_początkowy-H35,2),0)),0) -> 25 | G35: =IFERROR((IF(INDEX(Ćwiczenia[],Ćwiczenia_ostatni_koniec-Ćwiczenia_wiersz_początkowy-H35,2)<>"",INDEX(Ćwiczenia[],Ćwiczenia_ostatni_koniec-Ćwiczenia_wiersz_początkowy-H35,3),0)),0) -> 125 | H35: 11
D36: =IFERROR(IF(INDEX(Ćwiczenia[],Ćwiczenia_ostatni_koniec-Ćwiczenia_wiersz_początkowy-H36,1)<>"",INDEX(Ćwiczenia[],Ćwiczenia_ostatni_koniec-Ćwiczenia_wiersz_początkowy-H36,1)),"") -> 2017-05-12 | E36: PT | F36: =IFERROR((IF(INDEX(Ćwiczenia[],Ćwiczenia_ostatni_koniec-Ćwiczenia_wiersz_początkowy-H36,1)<>"",INDEX(Ćwiczenia[],Ćwiczenia_ostatni_koniec-Ćwiczenia_wiersz_początkowy-H36,2),0)),0) -> 30 | G36: =IFERROR((IF(INDEX(Ćwiczenia[],Ćwiczenia_ostatni_koniec-Ćwiczenia_wiersz_początkowy-H36,2)<>"",INDEX(Ćwiczenia[],Ćwiczenia_ostatni_koniec-Ćwiczenia_wiersz_początkowy-H36,3),0)),0) -> 150 | H36: 12
